[Event "*** Titled Tuesday Blitz"]
[Site "Chess.com"]
[Date "2021.02.02"]
[Round "3"]
[White "AustrianFalcon"]
[Black "VladimirBugayev"]
[Result "1-0"]
[WhiteElo "2494"]
[BlackElo "2236"]
[TimeControl "180+1"]
[EndTime "10:32:02 PST"]
[Termination "AustrianFalcon won on time"]

1. e4 {[%clk 0:03:00.9]} 1... c6 {[%clk 0:02:59.9]} 2. d4 {[%clk 0:03:00.7]}
2... d5 {[%clk 0:03:00.5]} 3. e5 {[%clk 0:03:01.2]} 3... Bf5 {[%clk 0:02:59.9]}
4. Nd2 {[%clk 0:03:01.5]} 4... e6 {[%clk 0:02:55.7]} 5. Ne2 {[%clk 0:02:52.6]}
5... Bb4 {[%clk 0:02:41.7]} 6. c3 {[%clk 0:02:51.5]} 6... Ba5 {[%clk 0:02:41.8]}
7. Ng3 {[%clk 0:02:47.7]} 7... Ne7 {[%clk 0:02:35.1]} 8. Nxf5 {[%clk 0:02:47.2]}
8... Nxf5 {[%clk 0:02:35]} 9. Bd3 {[%clk 0:02:47.4]} 9... g6 {[%clk 0:02:13.5]}
10. Nf3 {[%clk 0:02:42.3]} 10... h6 {[%clk 0:01:48.2]} 11. h4 {[%clk 0:02:26.3]}
11... Nd7 {[%clk 0:01:39.2]} 12. b4 {[%clk 0:02:08.8]} 12... Bc7 {[%clk
0:01:36.1]} 13. g4 {[%clk 0:02:04.3]} 13... Ng7 {[%clk 0:01:30]} 14. h5 {[%clk
0:02:02.2]} 14... g5 {[%clk 0:01:27.3]} 15. Be3 {[%clk 0:01:52.6]} 15... Qe7
{[%clk 0:01:26.2]} 16. Nd2 {[%clk 0:01:51.7]} 16... O-O-O {[%clk 0:01:15.5]} 17.
a4 {[%clk 0:01:51]} 17... f6 {[%clk 0:01:14.4]} 18. exf6 {[%clk 0:01:42]} 18...
Qxf6 {[%clk 0:01:14.3]} 19. Qf3 {[%clk 0:01:35]} 19... Qe7 {[%clk 0:01:05.8]}
20. Qe2 {[%clk 0:01:29.2]} 20... e5 {[%clk 0:01:01.8]} 21. dxe5 {[%clk
0:01:28.8]} 21... Nxe5 {[%clk 0:01:01.5]} 22. O-O-O {[%clk 0:01:14.6]} 22...
Nxd3+ {[%clk 0:00:52.9]} 23. Qxd3 {[%clk 0:01:14.4]} 23... Kb8 {[%clk
0:00:49.6]} 24. Rhe1 {[%clk 0:00:53]} 24... Qd7 {[%clk 0:00:49.2]} 25. a5 {[%clk
0:00:37.5]} 25... Qxg4 {[%clk 0:00:36.1]} 26. Bd4 {[%clk 0:00:37.2]} 26... Rhg8
{[%clk 0:00:33.8]} 27. Re7 {[%clk 0:00:36]} 27... Nf5 {[%clk 0:00:29.8]} 28.
Bxa7+ {[%clk 0:00:36]} 28... Kc8 {[%clk 0:00:21.3]} 29. Rf7 {[%clk 0:00:29.7]}
29... Nd6 {[%clk 0:00:20.9]} 30. Re7 {[%clk 0:00:20.8]} 30... Rde8 {[%clk
0:00:18.4]} 31. Rde1 {[%clk 0:00:20.6]} 31... Ne4 {[%clk 0:00:17.2]} 32. Rxe8+
{[%clk 0:00:16.6]} 32... Rxe8 {[%clk 0:00:17.2]} 33. Bb6 {[%clk 0:00:14.4]}
33... Bf4 {[%clk 0:00:13.5]} 34. Be3 {[%clk 0:00:13.5]} 34... Bxe3 {[%clk
0:00:11.9]} 35. Rxe3 {[%clk 0:00:13.3]} 35... Qf4 {[%clk 0:00:10.9]} 36. Nxe4
{[%clk 0:00:12.4]} 36... dxe4 {[%clk 0:00:10.3]} 37. Qd2 {[%clk 0:00:09.9]}
37... Rd8 {[%clk 0:00:10.2]} 38. Qe2 {[%clk 0:00:10]} 38... Qf7 {[%clk
0:00:08.4]} 39. Kb2 {[%clk 0:00:09.1]} 39... Qd7 {[%clk 0:00:05.5]} 40. Rxe4
{[%clk 0:00:08.1]} 40... Qd2+ {[%clk 0:00:05.2]} 41. Qxd2 {[%clk 0:00:08.4]}
41... Rxd2+ {[%clk 0:00:04.5]} 42. Kb3 {[%clk 0:00:09]} 42... Rxf2 {[%clk
0:00:05.1]} 43. Re6 {[%clk 0:00:09]} 43... Rh2 {[%clk 0:00:03.7]} 44. Rxh6
{[%clk 0:00:09.2]} 44... g4 {[%clk 0:00:04.1]} 45. Rg6 {[%clk 0:00:09.7]} 45...
Rxh5 {[%clk 0:00:03.8]} 46. Rxg4 {[%clk 0:00:10.3]} 46... Kb8 {[%clk 0:00:03.1]}
47. Rg6 {[%clk 0:00:07.9]} 47... Ka7 {[%clk 0:00:03.1]} 48. c4 {[%clk
0:00:06.6]} 48... Rf5 {[%clk 0:00:03.1]} 49. Ka4 {[%clk 0:00:06]} 49... Rf4
{[%clk 0:00:02.7]} 50. c5 {[%clk 0:00:05.7]} 50... Re4 {[%clk 0:00:02]} 51. Rg8
{[%clk 0:00:05.9]} 51... Rh4 {[%clk 0:00:01.9]} 52. a6 {[%clk 0:00:06.4]} 1-0

[Event "*** Titled Tuesday Blitz"]
[Site "Chess.com"]
[Date "2021.02.02"]
[Round "3"]
[White "Vaathi_Coming"]
[Black "Vesper2018"]
[Result "1-0"]
[WhiteElo "2840"]
[BlackElo "2613"]
[TimeControl "180+1"]
[EndTime "10:32:04 PST"]
[Termination "Vaathi_Coming won on time"]

1. e4 {[%clk 0:03:00.9]} 1... c5 {[%clk 0:02:59.3]} 2. Nf3 {[%clk 0:03:00.6]}
2... d6 {[%clk 0:02:59.2]} 3. d4 {[%clk 0:02:59.8]} 3... cxd4 {[%clk 0:02:59]}
4. Nxd4 {[%clk 0:03:00.7]} 4... Nf6 {[%clk 0:02:59.4]} 5. Nc3 {[%clk 0:03:00.4]}
5... a6 {[%clk 0:02:59.5]} 6. Be2 {[%clk 0:02:57.2]} 6... e5 {[%clk 0:02:58.9]}
7. Nb3 {[%clk 0:02:57.9]} 7... Be7 {[%clk 0:02:58.8]} 8. Be3 {[%clk 0:02:58.1]}
8... O-O {[%clk 0:02:53.7]} 9. g4 {[%clk 0:02:58.2]} 9... Be6 {[%clk 0:02:50.5]}
10. g5 {[%clk 0:02:58.6]} 10... Ne8 {[%clk 0:02:45.2]} 11. h4 {[%clk 0:02:56.5]}
11... Nc7 {[%clk 0:02:33.1]} 12. Bf3 {[%clk 0:02:18.6]} 12... Nd7 {[%clk
0:02:19.6]} 13. Qd2 {[%clk 0:02:13.5]} 13... a5 {[%clk 0:01:56.3]} 14. a4 {[%clk
0:02:11]} 14... Bc4 {[%clk 0:01:49.6]} 15. Be2 {[%clk 0:02:07.7]} 15... Be6
{[%clk 0:01:25.9]} 16. h5 {[%clk 0:01:58.2]} 16... Nc5 {[%clk 0:01:22.1]} 17.
Nxc5 {[%clk 0:01:51]} 17... dxc5 {[%clk 0:01:21.9]} 18. O-O-O {[%clk 0:01:47]}
18... Qxd2+ {[%clk 0:01:00.6]} 19. Rxd2 {[%clk 0:01:47.9]} 19... b6 {[%clk
0:00:59.3]} 20. f4 {[%clk 0:01:27.6]} 20... exf4 {[%clk 0:00:47.9]} 21. Bxf4
{[%clk 0:01:28.5]} 21... Na6 {[%clk 0:00:47.6]} 22. Nd5 {[%clk 0:01:22.1]} 22...
Bd8 {[%clk 0:00:46.2]} 23. c3 {[%clk 0:01:06.9]} 23... c4 {[%clk 0:00:39.9]} 24.
Bxc4 {[%clk 0:00:57]} 24... Nc5 {[%clk 0:00:38.8]} 25. Re1 {[%clk 0:00:54.1]}
25... Re8 {[%clk 0:00:28.5]} 26. b3 {[%clk 0:00:48]} 26... Bf5 {[%clk
0:00:20.1]} 27. e5 {[%clk 0:00:35.7]} 27... Be6 {[%clk 0:00:19.9]} 28. Kb2
{[%clk 0:00:33]} 28... Be7 {[%clk 0:00:13.6]} 29. Bb5 {[%clk 0:00:22.9]} 29...
Bxd5 {[%clk 0:00:12.3]} 30. Bxe8 {[%clk 0:00:18.1]} 30... Bxb3 {[%clk
0:00:12.4]} 31. Bb5 {[%clk 0:00:18.3]} 31... Bxa4 {[%clk 0:00:11.7]} 32. Bxa4
{[%clk 0:00:17.2]} 32... Nxa4+ {[%clk 0:00:11.9]} 33. Kb3 {[%clk 0:00:17.1]}
33... b5 {[%clk 0:00:12]} 34. Be3 {[%clk 0:00:13.5]} 34... Rc8 {[%clk
0:00:11.4]} 35. Rd3 {[%clk 0:00:07.2]} 35... f6 {[%clk 0:00:03.3]} 36. exf6
{[%clk 0:00:06.3]} 36... gxf6 {[%clk 0:00:03.3]} 37. Bd4 {[%clk 0:00:07]} 37...
Bc5 {[%clk 0:00:01.9]} 38. Bxf6 {[%clk 0:00:04.8]} 38... Bf8 {[%clk 0:00:01.4]}
39. Rd7 {[%clk 0:00:04.7]} 39... Nc5+ {[%clk 0:00:01]} 40. Kc2 {[%clk
0:00:05.4]} 40... Nxd7 {[%clk 0:00:01.8]} 41. Bd4 {[%clk 0:00:06.1]} 41... b4
{[%clk 0:00:02]} 42. g6 {[%clk 0:00:05.9]} 42... bxc3 {[%clk 0:00:01.9]} 43. Rf1
{[%clk 0:00:04.6]} 43... Bg7 {[%clk 0:00:01.6]} 44. Bxg7 {[%clk 0:00:04.4]}
44... Kxg7 {[%clk 0:00:01.9]} 45. Rf7+ {[%clk 0:00:05.1]} 45... Kh6 {[%clk
0:00:01.8]} 46. Rxh7+ {[%clk 0:00:05.4]} 46... Kg5 {[%clk 0:00:02.3]} 47. g7
{[%clk 0:00:03.6]} 47... Nf6 {[%clk 0:00:01.8]} 48. Rh8 {[%clk 0:00:04.2]} 48...
Rb8 {[%clk 0:00:01.3]} 49. Rxb8 {[%clk 0:00:03.4]} 1-0

[Event "*** Titled Tuesday Blitz"]
[Site "Chess.com"]
[Date "2021.02.02"]
[Round "3"]
[White "bugsbunny444"]
[Black "Srisshhhtea"]
[Result "0-1"]
[WhiteElo "2611"]
[BlackElo "2436"]
[TimeControl "180+1"]
[EndTime "10:32:12 PST"]
[Termination "Srisshhhtea won by resignation"]

1. Nf3 {[%clk 0:03:00.9]} 1... Nf6 {[%clk 0:02:58.6]} 2. c4 {[%clk 0:03:01.3]}
2... c6 {[%clk 0:02:56.2]} 3. g3 {[%clk 0:03:01.5]} 3... d5 {[%clk 0:02:56.4]}
4. Bg2 {[%clk 0:03:02]} 4... dxc4 {[%clk 0:02:52.3]} 5. Qc2 {[%clk 0:03:01.9]}
5... b5 {[%clk 0:02:49.6]} 6. b3 {[%clk 0:03:01.9]} 6... cxb3 {[%clk 0:02:45.4]}
7. axb3 {[%clk 0:03:02.8]} 7... Bb7 {[%clk 0:02:44]} 8. Ba3 {[%clk 0:03:03.3]}
8... Nbd7 {[%clk 0:02:39.7]} 9. d4 {[%clk 0:03:03.5]} 9... a5 {[%clk 0:02:29.4]}
10. O-O {[%clk 0:03:01.9]} 10... b4 {[%clk 0:02:29.6]} 11. Bb2 {[%clk
0:03:01.9]} 11... e6 {[%clk 0:02:29.2]} 12. Nbd2 {[%clk 0:03:02.1]} 12... Be7
{[%clk 0:02:28.3]} 13. Nc4 {[%clk 0:02:59.6]} 13... O-O {[%clk 0:02:27.3]} 14.
Ra2 {[%clk 0:02:53.4]} 14... c5 {[%clk 0:02:23.6]} 15. Rfa1 {[%clk 0:02:53.5]}
15... Be4 {[%clk 0:02:21.4]} 16. Qd1 {[%clk 0:02:49.3]} 16... Nb6 {[%clk
0:02:00.6]} 17. Nxa5 {[%clk 0:02:38.5]} 17... Qd5 {[%clk 0:01:56.1]} 18. Ne1
{[%clk 0:02:09.4]} 18... Bxg2 {[%clk 0:01:43.4]} 19. Nxg2 {[%clk 0:02:08.8]}
19... Rfd8 {[%clk 0:01:39.6]} 20. Ne3 {[%clk 0:02:04.3]} 20... Qe4 {[%clk
0:01:36.3]} 21. Qc2 {[%clk 0:01:51.1]} 21... cxd4 {[%clk 0:01:19.6]} 22. Nc6
{[%clk 0:01:39.2]} 22... dxe3 {[%clk 0:01:12.8]} 23. Nxe7+ {[%clk 0:01:38.8]}
23... Kf8 {[%clk 0:01:12.6]} 24. Qxe4 {[%clk 0:00:11.9]} 24... exf2+ {[%clk
0:01:11.1]} 25. Kg2 {[%clk 0:00:07.2]} 25... Nxe4 {[%clk 0:01:08.1]} 26. Rxa8
{[%clk 0:00:07.1]} 26... Rxa8 {[%clk 0:01:00.9]} 27. Rxa8+ {[%clk 0:00:07.1]}
27... Nxa8 {[%clk 0:01:01.1]} 28. Nc6 {[%clk 0:00:08]} 28... Nc7 {[%clk
0:00:55.6]} 29. Nxb4 {[%clk 0:00:07.7]} 29... Nb5 {[%clk 0:00:44.8]} 30. Nd3
{[%clk 0:00:06.9]} 30... f1=Q+ {[%clk 0:00:35]} 31. Kxf1 {[%clk 0:00:06.7]}
31... Nd2+ {[%clk 0:00:35.7]} 32. Kf2 {[%clk 0:00:06.2]} 32... Nxb3 {[%clk
0:00:36.6]} 33. h4 {[%clk 0:00:03.5]} 33... Nd2 {[%clk 0:00:34]} 34. g4 {[%clk
0:00:03.1]} 34... Nc4 {[%clk 0:00:33.1]} 35. Ba1 {[%clk 0:00:02.7]} 35... Nbd6
{[%clk 0:00:31.9]} 36. Kf3 {[%clk 0:00:01.9]} 36... f6 {[%clk 0:00:29]} 37. h5
{[%clk 0:00:02.1]} 37... Kf7 {[%clk 0:00:29]} 38. Nf4 {[%clk 0:00:01.6]} 38...
Nb5 {[%clk 0:00:22.6]} 39. Nd3 {[%clk 0:00:01.9]} 39... e5 {[%clk 0:00:20.5]}
40. Nf2 {[%clk 0:00:02.1]} 40... Ke6 {[%clk 0:00:20.2]} 41. Ne4 {[%clk
0:00:02.3]} 41... Ncd6 {[%clk 0:00:20.2]} 42. Ng3 {[%clk 0:00:02.4]} 42... Na3
{[%clk 0:00:19.4]} 43. Bb2 {[%clk 0:00:02.2]} 43... Nac4 {[%clk 0:00:18.8]} 44.
Ba1 {[%clk 0:00:02.4]} 44... g6 {[%clk 0:00:18.8]} 45. hxg6 {[%clk 0:00:02.3]}
45... hxg6 {[%clk 0:00:19.7]} 46. Ne4 {[%clk 0:00:02.3]} 46... Nxe4 {[%clk
0:00:19.1]} 47. Kxe4 {[%clk 0:00:02.8]} 47... Nd2+ {[%clk 0:00:19.3]} 48. Ke3
{[%clk 0:00:02.2]} 48... Nb3 {[%clk 0:00:19.5]} 49. Bb2 {[%clk 0:00:02.1]} 49...
f5 {[%clk 0:00:19]} 50. gxf5+ {[%clk 0:00:02.2]} 50... gxf5 {[%clk 0:00:19.9]}
51. Kf3 {[%clk 0:00:03]} 51... Nc5 {[%clk 0:00:18.9]} 52. Ke3 {[%clk 0:00:03.2]}
52... Ne4 {[%clk 0:00:19.3]} 53. Kf3 {[%clk 0:00:03.4]} 53... Nd2+ {[%clk
0:00:19.4]} 54. Ke3 {[%clk 0:00:03.8]} 54... Nc4+ {[%clk 0:00:20]} 55. Kd3
{[%clk 0:00:04.3]} 55... Nxb2+ {[%clk 0:00:20.9]} 56. Kc3 {[%clk 0:00:04.8]}
56... Na4+ {[%clk 0:00:21.3]} 57. Kb4 {[%clk 0:00:05.3]} 57... Nb6 {[%clk
0:00:22.2]} 0-1

[Event "*** Titled Tuesday Blitz"]
[Site "Chess.com"]
[Date "2021.02.02"]
[Round "3"]
[White "zimmm36"]
[Black "Taktikmonster"]
[Result "1-0"]
[WhiteElo "2052"]
[BlackElo "2292"]
[TimeControl "180+1"]
[EndTime "10:32:18 PST"]
[Termination "zimmm36 won by resignation"]

1. d4 {[%clk 0:02:58.2]} 1... Nf6 {[%clk 0:02:59.7]} 2. c4 {[%clk 0:02:57.9]}
2... e6 {[%clk 0:02:59.7]} 3. g3 {[%clk 0:02:55.9]} 3... Bb4+ {[%clk 0:02:58.8]}
4. Bd2 {[%clk 0:02:55.6]} 4... c5 {[%clk 0:02:58.2]} 5. Bxb4 {[%clk 0:02:52]}
5... cxb4 {[%clk 0:02:59.1]} 6. Bg2 {[%clk 0:02:52.7]} 6... O-O {[%clk
0:02:52.5]} 7. Nf3 {[%clk 0:02:52.4]} 7... d6 {[%clk 0:02:49.6]} 8. O-O {[%clk
0:02:51.1]} 8... Nc6 {[%clk 0:02:50]} 9. d5 {[%clk 0:02:45.7]} 9... exd5 {[%clk
0:02:48.3]} 10. cxd5 {[%clk 0:02:46.6]} 10... Na5 {[%clk 0:02:46.9]} 11. a3
{[%clk 0:02:40.6]} 11... bxa3 {[%clk 0:02:43.8]} 12. Rxa3 {[%clk 0:02:41.5]}
12... Nc4 {[%clk 0:02:43.9]} 13. Rc3 {[%clk 0:02:40.9]} 13... Nb6 {[%clk
0:02:42.9]} 14. Ne1 {[%clk 0:02:28.7]} 14... Bf5 {[%clk 0:02:31.5]} 15. Na3
{[%clk 0:02:26.7]} 15... a6 {[%clk 0:02:27.5]} 16. Nec2 {[%clk 0:02:18.6]} 16...
Rc8 {[%clk 0:02:20.5]} 17. Nd4 {[%clk 0:02:12.2]} 17... Be4 {[%clk 0:02:06.6]}
18. Bxe4 {[%clk 0:01:46.8]} 18... Nxe4 {[%clk 0:02:07.5]} 19. Rd3 {[%clk
0:01:46.8]} 19... Nf6 {[%clk 0:01:29.1]} 20. Nf5 {[%clk 0:01:41.6]} 20... Rc5
{[%clk 0:01:16.5]} 21. e4 {[%clk 0:01:38.5]} 21... g6 {[%clk 0:01:01.9]} 22.
Nh6+ {[%clk 0:01:32.9]} 22... Kg7 {[%clk 0:01:01.6]} 23. Ng4 {[%clk 0:01:29.1]}
23... Nxe4 {[%clk 0:00:57.7]} 24. Re3 {[%clk 0:01:28.6]} 24... Nf6 {[%clk
0:00:44.5]} 25. Qd4 {[%clk 0:01:19.2]} 25... Rxd5 {[%clk 0:00:44.1]} 26. Qc3
{[%clk 0:01:19.1]} 26... Na4 {[%clk 0:00:36.3]} 27. Qb4 {[%clk 0:01:08.4]} 27...
Nxg4 {[%clk 0:00:31]} 28. Qxg4 {[%clk 0:01:05.3]} 28... Nxb2 {[%clk 0:00:29.5]}
29. Qb4 {[%clk 0:00:59]} 29... Qf6 {[%clk 0:00:22.6]} 30. Qxb7 {[%clk
0:00:51.6]} 30... Nd3 {[%clk 0:00:20.7]} 31. Qxd5 {[%clk 0:00:49.6]} 31... Ne5
{[%clk 0:00:19.6]} 32. Nc4 {[%clk 0:00:47.5]} 32... Ng4 {[%clk 0:00:17.3]} 33.
Rf3 {[%clk 0:00:45.5]} 33... Qe7 {[%clk 0:00:14.3]} 34. Qd4+ {[%clk 0:00:45.2]}
34... Ne5 {[%clk 0:00:14.4]} 35. Nxe5 {[%clk 0:00:44.6]} 35... dxe5 {[%clk
0:00:15.3]} 36. Re3 {[%clk 0:00:44.6]} 36... Re8 {[%clk 0:00:10.6]} 37. Qa4
{[%clk 0:00:41.9]} 37... Qe6 {[%clk 0:00:08.2]} 38. Rd1 {[%clk 0:00:39.9]} 38...
Re7 {[%clk 0:00:07.1]} 39. Qb3 {[%clk 0:00:30.3]} 39... Qc6 {[%clk 0:00:03.7]}
40. Qd5 {[%clk 0:00:29.1]} 40... Qxd5 {[%clk 0:00:01.2]} 41. Rxd5 {[%clk
0:00:30]} 41... f6 {[%clk 0:00:01.6]} 42. Rd6 {[%clk 0:00:29.7]} 42... Ra7
{[%clk 0:00:02.1]} 43. Red3 {[%clk 0:00:29.4]} 43... a5 {[%clk 0:00:02.7]} 44.
Rd7+ {[%clk 0:00:29.4]} 44... Rxd7 {[%clk 0:00:03.4]} 45. Rxd7+ {[%clk
0:00:30.2]} 45... Kh6 {[%clk 0:00:04.3]} 46. Ra7 {[%clk 0:00:31.1]} 46... Kg5
{[%clk 0:00:04.8]} 47. Rxa5 {[%clk 0:00:30.6]} 47... h5 {[%clk 0:00:04.6]} 48.
Kg2 {[%clk 0:00:31.5]} 48... Kf5 {[%clk 0:00:05]} 49. h3 {[%clk 0:00:32.4]}
49... g5 {[%clk 0:00:05.3]} 50. f3 {[%clk 0:00:31.4]} 50... g4 {[%clk
0:00:05.1]} 51. hxg4+ {[%clk 0:00:31.4]} 51... hxg4 {[%clk 0:00:06]} 52. fxg4+
{[%clk 0:00:32.3]} 52... Kxg4 {[%clk 0:00:06.8]} 53. Ra6 {[%clk 0:00:32.9]}
53... f5 {[%clk 0:00:06.2]} 54. Ra5 {[%clk 0:00:32.3]} 54... e4 {[%clk
0:00:05.8]} 55. Re5 {[%clk 0:00:30.7]} 55... Kg5 {[%clk 0:00:05.3]} 56. Kf2
{[%clk 0:00:29.3]} 56... Kg4 {[%clk 0:00:06.2]} 57. Ke3 {[%clk 0:00:28.3]} 57...
Kg5 {[%clk 0:00:05.2]} 58. Re6 {[%clk 0:00:27.9]} 58... Kg4 {[%clk 0:00:05.7]}
59. Rg6+ {[%clk 0:00:27.1]} 59... Kh5 {[%clk 0:00:05.5]} 60. Rg8 {[%clk
0:00:27]} 60... Kh6 {[%clk 0:00:04.6]} 61. Kf4 {[%clk 0:00:26.6]} 61... Kh7
{[%clk 0:00:05.5]} 62. Re8 {[%clk 0:00:26.1]} 62... Kg6 {[%clk 0:00:06.1]} 63.
Re5 {[%clk 0:00:25.5]} 63... e3 {[%clk 0:00:02.7]} 64. Rxf5 {[%clk 0:00:26.4]}
64... e2 {[%clk 0:00:03]} 65. Re5 {[%clk 0:00:26.4]} 65... Kf6 {[%clk
0:00:02.8]} 66. Rxe2 {[%clk 0:00:25.9]} 66... Kf7 {[%clk 0:00:03.7]} 67. g4
{[%clk 0:00:26.8]} 1-0

[Event "*** Titled Tuesday Blitz"]
[Site "Chess.com"]
[Date "2021.02.02"]
[Round "3"]
[White "ShimanovAlex"]
[Black "Monmoransy"]
[Result "1-0"]
[WhiteElo "2834"]
[BlackElo "2612"]
[TimeControl "180+1"]
[EndTime "10:32:20 PST"]
[Termination "ShimanovAlex won by checkmate"]

1. e4 {[%clk 0:03:00.9]} 1... c5 {[%clk 0:02:59.6]} 2. Nc3 {[%clk 0:03:00.3]}
2... g6 {[%clk 0:02:58.3]} 3. d3 {[%clk 0:02:58.8]} 3... Bg7 {[%clk 0:02:57.3]}
4. g3 {[%clk 0:02:58.8]} 4... Nc6 {[%clk 0:02:56.7]} 5. Bg2 {[%clk 0:02:58.4]}
5... d6 {[%clk 0:02:56.4]} 6. f4 {[%clk 0:02:58.4]} 6... e6 {[%clk 0:02:56.3]}
7. Nf3 {[%clk 0:02:58.7]} 7... Nge7 {[%clk 0:02:56.1]} 8. O-O {[%clk 0:02:59.3]}
8... O-O {[%clk 0:02:55.9]} 9. Be3 {[%clk 0:02:59.7]} 9... Nd4 {[%clk
0:02:56.2]} 10. Qd2 {[%clk 0:02:59.6]} 10... b6 {[%clk 0:02:47.6]} 11. Nd1
{[%clk 0:02:57.3]} 11... Nxf3+ {[%clk 0:02:46.2]} 12. Bxf3 {[%clk 0:02:57.3]}
12... Bb7 {[%clk 0:02:46.3]} 13. c3 {[%clk 0:02:56.8]} 13... Qd7 {[%clk
0:02:45.3]} 14. Nf2 {[%clk 0:02:51.7]} 14... f5 {[%clk 0:02:44.5]} 15. Qe2
{[%clk 0:02:51.2]} 15... Rae8 {[%clk 0:02:43.7]} 16. Rad1 {[%clk 0:02:41.4]}
16... Kh8 {[%clk 0:02:42.9]} 17. d4 {[%clk 0:02:38.4]} 17... Qc7 {[%clk
0:02:28.8]} 18. dxc5 {[%clk 0:02:30.2]} 18... dxc5 {[%clk 0:02:24.6]} 19. e5
{[%clk 0:02:29.6]} 19... Bxf3 {[%clk 0:02:21]} 20. Qxf3 {[%clk 0:02:30.5]} 20...
c4 {[%clk 0:02:11.7]} 21. Rd6 {[%clk 0:02:19.7]} 21... Nd5 {[%clk 0:02:11.5]}
22. Rd1 {[%clk 0:02:17.3]} 22... Rf7 {[%clk 0:02:07.7]} 23. R1xd5 {[%clk
0:02:16.7]} 23... exd5 {[%clk 0:02:06.8]} 24. Bd4 {[%clk 0:02:17.1]} 24... Rd7
{[%clk 0:01:57.1]} 25. Rxd7 {[%clk 0:02:11.8]} 25... Qxd7 {[%clk 0:01:55.9]} 26.
Nd1 {[%clk 0:02:12.7]} 26... Qe6 {[%clk 0:01:47]} 27. Ne3 {[%clk 0:02:12.9]}
27... Rd8 {[%clk 0:01:47]} 28. h3 {[%clk 0:02:12.8]} 28... a6 {[%clk 0:01:42.1]}
29. Kh2 {[%clk 0:02:08.4]} 29... b5 {[%clk 0:01:42.2]} 30. g4 {[%clk 0:02:04.6]}
30... Bh6 {[%clk 0:01:39.7]} 31. g5 {[%clk 0:02:01]} 31... Bf8 {[%clk
0:01:37.4]} 32. h4 {[%clk 0:02:01.9]} 32... h5 {[%clk 0:01:35.1]} 33. gxh6
{[%clk 0:01:54]} 33... Bxh6 {[%clk 0:01:35]} 34. Kg3 {[%clk 0:01:45.4]} 34...
Kg7 {[%clk 0:01:27.9]} 35. Qd1 {[%clk 0:01:34]} 35... Kf7 {[%clk 0:01:27.1]} 36.
a4 {[%clk 0:01:30.4]} 36... Qe7 {[%clk 0:01:26.4]} 37. axb5 {[%clk 0:01:29.6]}
37... axb5 {[%clk 0:01:25.7]} 38. Qh1 {[%clk 0:01:20.8]} 38... Ke6 {[%clk
0:01:21.9]} 39. Qa1 {[%clk 0:01:10.9]} 39... Bxf4+ {[%clk 0:01:18]} 40. Kxf4
{[%clk 0:01:11.8]} 40... Qxh4+ {[%clk 0:01:17.8]} 41. Kf3 {[%clk 0:01:12.3]}
41... Qe4+ {[%clk 0:01:09.9]} 42. Kf2 {[%clk 0:01:11.8]} 42... Qf4+ {[%clk
0:01:01.5]} 43. Ke2 {[%clk 0:01:10.1]} 43... Qh2+ {[%clk 0:01:00.8]} 44. Ke1
{[%clk 0:01:09.7]} 44... Qh1+ {[%clk 0:00:57.8]} 45. Nf1 {[%clk 0:01:09.6]}
45... Qe4+ {[%clk 0:00:54.9]} 46. Kf2 {[%clk 0:01:02.1]} 46... Qc2+ {[%clk
0:00:48.7]} 47. Kg1 {[%clk 0:01:01.4]} 47... Qa4 {[%clk 0:00:47.8]} 48. Qc1
{[%clk 0:00:58.4]} 48... Rg8 {[%clk 0:00:37.6]} 49. Qg5 {[%clk 0:00:57]} 49...
Qd1 {[%clk 0:00:23.9]} 50. Qf6+ {[%clk 0:00:56.8]} 50... Kd7 {[%clk 0:00:24.5]}
51. Qf7+ {[%clk 0:00:55.8]} 51... Kc6 {[%clk 0:00:23.9]} 52. Qe6+ {[%clk
0:00:43.5]} 52... Kb7 {[%clk 0:00:21.5]} 53. Qxd5+ {[%clk 0:00:40.7]} 53... Kb8
{[%clk 0:00:18.6]} 54. Ba7+ {[%clk 0:00:39.6]} 54... Kxa7 {[%clk 0:00:16.7]} 55.
Qxd1 {[%clk 0:00:39.5]} 55... Rh8 {[%clk 0:00:10.8]} 56. e6 {[%clk 0:00:38.3]}
56... Rg8 {[%clk 0:00:09.6]} 57. e7 {[%clk 0:00:38.3]} 57... Ka8 {[%clk
0:00:07.9]} 58. Qd5+ {[%clk 0:00:37.5]} 58... Ka7 {[%clk 0:00:06.9]} 59. Nh2
{[%clk 0:00:36.5]} 59... Rh8 {[%clk 0:00:05.7]} 60. Nf3 {[%clk 0:00:36.2]} 60...
f4 {[%clk 0:00:04.9]} 61. Ne1 {[%clk 0:00:36]} 61... Kb8 {[%clk 0:00:03.7]} 62.
Nc2 {[%clk 0:00:35.9]} 62... Kc8 {[%clk 0:00:02.6]} 63. Na1 {[%clk 0:00:36.1]}
63... Rd8 {[%clk 0:00:01.9]} 64. exd8=Q# {[%clk 0:00:22]} 1-0